[Event "Irish Championship 2026"]
[Site "Talbot Hotel Stillorgan, Co.Dublin, IE"]
[Date "2026.08.09"]
[Round "9"]
[White "Heron, Lorcan"]
[Black "Fitzgerald, Martin"]
[Result "1-0"]
[Board "82"]
[TimeControl "40/5400+30:1800+30"]
[WhiteFideId "2529343"]
[BlackFideId "2511177"]
[WhiteElo "1926"]
[BlackElo "1891"]
[WhiteClock "0:26:15"]
[BlackClock "0:21:31"]
[Variant "Standard"]
[EndDate "2026.08.09"]
[EndTime "13:19:39"]

1. d4 {[%clk 1:30:54]}  Nf6 {[%clk 1:28:23]} 2. c4 {[%clk 1:31:19]}  e6 {[%clk 1:28:44]} 3. Nc3 {[%clk 1:31:46]}  d5 {[%clk 1:28:23]}
4. cxd5 {[%clk 1:32:11]}  exd5 {[%clk 1:28:47]} 5. Bg5 {[%clk 1:32:39]}  c6 {[%clk 1:28:32]} 6. e3 {[%clk 1:33:05]}  Be7 {[%clk 1:28:51]}
7. Bd3 {[%clk 1:33:10]}  Nbd7 {[%clk 1:28:50]} 8. Nge2 {[%clk 1:33:25]}  h6 {[%clk 1:19:35]} 9. Bh4 {[%clk 1:33:25]}  Nh5 {[%clk 1:19:35]}
10. Bxe7 {[%clk 1:33:25]}  Qxe7 {[%clk 1:19:35]} 11. Qd2 {[%clk 1:33:25]}  Ndf6 {[%clk 1:19:35]} 12. f3 {[%clk 1:32:47]}  g6 {[%clk 1:19:48]}
13. O-O {[%clk 1:25:27]}  O-O {[%clk 1:19:10]} 14. Rae1 {[%clk 1:16:43]}  Bd7 {[%clk 1:13:38]} 15. e4 {[%clk 1:11:21]}  dxe4 {[%clk 1:10:03]}
16. fxe4 {[%clk 1:11:46]}  Kh7 {[%clk 1:08:19]} 17. Nf4 {[%clk 1:02:29]}  Nxf4 {[%clk 0:57:23]} 18. Qxf4 {[%clk 1:02:54]}  Nh5 {[%clk 0:57:20]}
19. Qf2 {[%clk 0:57:24]}  Rad8 {[%clk 0:52:28]} 20. e5 {[%clk 0:51:28]}  Be6 {[%clk 0:46:21]} 21. Ne4 {[%clk 0:42:11]}  Bd5 {[%clk 0:34:13]}
22. g4 {[%clk 0:32:00]}  Bxe4 {[%clk 0:32:39]} 23. Rxe4 {[%clk 0:32:26]}  Ng7 {[%clk 0:32:39]} 24. Rf4 {[%clk 0:32:12]}  Kg8 {[%clk 0:26:08]}
25. Bc4 {[%clk 0:25:10]}  Ne6 {[%clk 0:24:01]} 26. Rf6 {[%clk 0:25:37]}  Kg7 {[%clk 0:21:11]} 27. Bxe6 {[%clk 0:25:47]}  fxe6 {[%clk 0:21:31]}
28. Qc2 {[%clk 0:25:45]}  Rxf6 {[%clk 0:21:31]} 29. exf6+ {[%clk 0:26:15]}  Qxf6 {[%clk 0:21:31]} 30. Rxf6 {[%clk 0:26:15]}  Kxf6 {[%clk 0:21:31]}
31. Qc5 {[%clk 0:26:15]}  Rd5 {[%clk 0:21:31]} 32. Qxa7 {[%clk 0:26:15]}  Rg5 {[%clk 0:21:31]} 33. h3 {[%clk 0:26:15]}  h5 {[%clk 0:21:31]}
34. Qxb7 {[%clk 0:26:15]}  hxg4 {[%clk 0:21:31]} 35. h4 {[%clk 0:26:15]}  Rb5 {[%clk 0:21:31]} 36. Qxc6 {[%clk 0:26:15]}  Rxb2 {[%clk 0:21:31]}
37. a4 {[%clk 0:26:15]}  Rb4 {[%clk 0:21:31]} 38. d5 {[%clk 0:26:15]} 1-0

[Event "Irish Championship 2026"]
[Site "Talbot Hotel Stillorgan, Co.Dublin, IE"]
[Date "2026.08.09"]
[Round "9"]
[White "Doolin, Nemhain"]
[Black "Liu, Murray"]
[Result "1-0"]
[Board "83"]
[TimeControl "40/5400+30:1800+30"]
[WhiteFideId "2517230"]
[BlackFideId "2517191"]
[WhiteElo "1915"]
[BlackElo "1885"]
[WhiteClock "0:21:37"]
[BlackClock "0:19:07"]
[Variant "Standard"]
[EndDate "2026.08.09"]
[EndTime "13:29:08"]

1. e4 {[%clk 1:30:30]}  c5 {[%clk 1:30:38]} 2. Nc3 {[%clk 1:31:11]}  d6 {[%clk 1:31:02]} 3. d4 {[%clk 1:31:38]}  cxd4 {[%clk 1:31:16]}
4. Qxd4 {[%clk 1:32:03]}  Nc6 {[%clk 1:31:31]} 5. Qd2 {[%clk 1:32:30]}  Nf6 {[%clk 1:31:53]} 6. b3 {[%clk 1:32:57]}  e6 {[%clk 1:31:54]}
7. Bb2 {[%clk 1:33:17]}  a6 {[%clk 1:32:16]} 8. O-O-O {[%clk 1:33:23]}  b5 {[%clk 1:32:22]} 9. f3 {[%clk 1:33:19]}  Be7 {[%clk 1:32:31]}
10. g4 {[%clk 1:33:13]}  Nxg4 {[%clk 1:05:55]} 11. Kb1 {[%clk 1:33:14]}  Nf6 {[%clk 1:00:06]} 12. Nge2 {[%clk 1:30:11]}  Bd7 {[%clk 0:57:35]}
13. Rg1 {[%clk 1:29:11]}  b4 {[%clk 0:52:02]} 14. Na4 {[%clk 1:25:06]}  Na5 {[%clk 0:49:39]} 15. Nd4 {[%clk 1:15:43]}  g6 {[%clk 0:40:17]}
16. Bd3 {[%clk 0:48:10]}  e5 {[%clk 0:34:02]} 17. Ne2 {[%clk 0:46:54]}  Bxa4 {[%clk 0:30:39]} 18. bxa4 {[%clk 0:46:44]}  Nd7 {[%clk 0:28:12]}
19. Nc1 {[%clk 0:37:06]}  Nc5 {[%clk 0:23:26]} 20. Nb3 {[%clk 0:30:51]}  Nxd3 {[%clk 0:22:33]} 21. cxd3 {[%clk 0:27:35]}  Qb6 {[%clk 0:19:07]}
22. Rc1 {[%clk 0:21:37]}  h6 {[%clk 0:19:07]} 23. d4 {[%clk 0:21:37]}  Nxb3 {[%clk 0:19:07]} 24. axb3 {[%clk 0:21:37]}  Bg5 {[%clk 0:19:07]}
25. Rxg5 {[%clk 0:21:37]}  hxg5 {[%clk 0:19:07]} 26. dxe5 {[%clk 0:21:37]}  dxe5 {[%clk 0:19:07]} 27. Qd5 {[%clk 0:21:37]}  O-O {[%clk 0:19:07]}
28. Qxe5 {[%clk 0:21:37]}  f6 {[%clk 0:19:07]} 29. Qd5+ {[%clk 0:21:37]}  Kh7 {[%clk 0:19:07]} 30. Qd7+ {[%clk 0:21:37]}  Kh6 {[%clk 0:19:07]}
31. Rc7 {[%clk 0:21:37]}  Qxc7 {[%clk 0:19:07]} 32. Qxc7 {[%clk 0:21:37]} 1-0

[Event "Irish Championship 2026"]
[Site "Talbot Hotel Stillorgan, Co.Dublin, IE"]
[Date "2026.08.09"]
[Round "9"]
[White "Voogt, Declan"]
[Black "Thomas Boby, Aiden"]
[Result "1-0"]
[Board "84"]
[TimeControl "40/5400+30:1800+30"]
[WhiteFideId "2517388"]
[BlackFideId "2535688"]
[WhiteElo "1849"]
[BlackElo "1978"]
[WhiteClock "0:29:28"]
[BlackClock "0:15:13"]
[Variant "Standard"]
[EndDate "2026.08.09"]
[EndTime "14:06:28"]

1. Nf3 {[%clk 1:30:57]}  c5 {[%clk 1:17:45]} 2. g3 {[%clk 1:30:57]}  Nc6 {[%clk 1:17:45]} 3. Bg2 {[%clk 1:30:57]}  g6 {[%clk 1:17:45]}
4. O-O {[%clk 1:30:57]}  Bg7 {[%clk 1:17:45]} 5. d3 {[%clk 1:30:57]}  e6 {[%clk 1:17:45]} 6. e4 {[%clk 1:30:57]}  Nge7 {[%clk 1:17:45]}
7. c3 {[%clk 1:30:57]}  O-O {[%clk 1:17:45]} 8. Bg5 {[%clk 1:29:23]}  h6 {[%clk 1:16:28]} 9. Be3 {[%clk 1:27:48]}  d6 {[%clk 1:15:00]}
10. Na3 {[%clk 1:25:20]}  a6 {[%clk 1:09:15]} 11. Nc2 {[%clk 1:23:24]}  f5 {[%clk 1:00:22]} 12. Qd2 {[%clk 1:19:12]}  Kh7 {[%clk 0:57:59]}
13. Nfe1 {[%clk 1:14:25]}  b6 {[%clk 0:49:56]} 14. exf5 {[%clk 1:04:55]}  gxf5 {[%clk 0:47:10]} 15. f4 {[%clk 1:03:49]}  d5 {[%clk 0:46:37]}
16. Nf3 {[%clk 1:03:20]}  Rb8 {[%clk 0:38:08]} 17. d4 {[%clk 1:02:03]}  c4 {[%clk 0:36:08]} 18. Ne5 {[%clk 0:57:08]}  Nxe5 {[%clk 0:34:53]}
19. fxe5 {[%clk 0:54:15]}  Bd7 {[%clk 0:33:47]} 20. Kh1 {[%clk 0:49:49]}  b5 {[%clk 0:30:36]} 21. Bf3 {[%clk 0:44:50]}  Ng6 {[%clk 0:29:38]}
22. Bf4 {[%clk 0:43:20]}  a5 {[%clk 0:25:22]} 23. a3 {[%clk 0:43:36]}  Nxf4 {[%clk 0:25:16]} 24. Qxf4 {[%clk 0:42:35]}  Qg5 {[%clk 0:24:38]}
25. Qxg5 {[%clk 0:38:20]}  hxg5 {[%clk 0:25:02]} 26. g4 {[%clk 0:38:39]}  f4 {[%clk 0:24:59]} 27. Kg2 {[%clk 0:37:02]}  Kg6 {[%clk 0:24:04]}
28. Bd1 {[%clk 0:32:53]}  Kf7 {[%clk 0:18:15]} 29. Ne1 {[%clk 0:29:29]}  b4 {[%clk 0:15:13]} 30. axb4 {[%clk 0:29:28]}  axb4 {[%clk 0:15:13]}
31. Ra7 {[%clk 0:29:28]}  Ke8 {[%clk 0:15:13]} 32. Nf3 {[%clk 0:29:28]}  Rh8 {[%clk 0:15:13]} 33. Rf2 {[%clk 0:29:28]}  Bh6 {[%clk 0:15:13]}
34. Ba4 {[%clk 0:00:00]}  Bxa4 {[%clk 0:15:13]} 35. Rxa4 {[%clk 0:29:28]}  Kf7 {[%clk 0:15:13]} 36. h4 {[%clk 0:29:28]}  gxh4 {[%clk 0:15:13]}
37. Kh3 {[%clk 0:29:28]}  Ra8 {[%clk 0:15:13]} 1-0

[Event "Irish Championship 2026"]
[Site "Talbot Hotel Stillorgan, Co.Dublin, IE"]
[Date "2026.08.09"]
[Round "9"]
[White "Biswal, Saiansh"]
[Black "Greenan, Darragh"]
[Result "1/2-1/2"]
[Board "85"]
[TimeControl "40/5400+30:1800+30"]
[WhiteFideId "2518155"]
[BlackFideId "2525607"]
[WhiteElo "1824"]
[BlackElo "1786"]
[WhiteClock "0:17:38"]
[BlackClock "0:21:34"]
[Variant "Standard"]
[EndDate "2026.08.09"]
[EndTime "14:00:19"]

1. e4 {[%clk 1:30:30]}  e6 {[%clk 1:30:30]} 2. d4 {[%clk 1:30:30]}  d5 {[%clk 1:30:30]} 3. e5 {[%clk 1:30:30]}  c5 {[%clk 1:30:30]}
4. c3 {[%clk 1:30:30]}  Nc6 {[%clk 1:30:30]} 5. Nf3 {[%clk 1:30:30]}  Bd7 {[%clk 1:30:30]} 6. Be2 {[%clk 1:30:30]}  cxd4 {[%clk 1:30:30]}
7. cxd4 {[%clk 1:30:30]}  Qb6 {[%clk 1:30:30]} 8. Nc3 {[%clk 1:12:53]}  Nge7 {[%clk 1:23:39]} 9. Rb1 {[%clk 1:12:47]}  Nf5 {[%clk 1:16:57]}
10. Be3 {[%clk 1:13:04]}  f6 {[%clk 1:10:46]} 11. exf6 {[%clk 0:59:44]}  gxf6 {[%clk 1:09:17]} 12. Bd3 {[%clk 0:59:20]}  Nxe3 {[%clk 1:06:14]}
13. fxe3 {[%clk 0:59:42]}  O-O-O {[%clk 1:01:43]} 14. a3 {[%clk 0:57:07]}  e5 {[%clk 0:44:44]} 15. Nxd5 {[%clk 0:45:57]}  Qa5+ {[%clk 0:44:01]}
16. Nc3 {[%clk 0:45:20]}  exd4 {[%clk 0:42:38]} 17. exd4 {[%clk 0:43:42]}  Bg4 {[%clk 0:40:35]} 18. b4 {[%clk 0:28:49]}  Qc7 {[%clk 0:27:30]}
19. Ne2 {[%clk 0:19:19]}  Bxf3 {[%clk 0:25:40]} 20. gxf3 {[%clk 0:19:45]}  Kb8 {[%clk 0:24:56]} 21. Be4 {[%clk 0:18:12]}  Nxd4 {[%clk 0:20:49]}
22. Nxd4 {[%clk 0:16:41]}  Qc3+ {[%clk 0:21:09]} 23. Qd2 {[%clk 0:16:56]}  Qxd2+ {[%clk 0:21:09]} 24. Kxd2 {[%clk 0:17:21]}  Rxd4+ {[%clk 0:21:35]}
25. Ke3 {[%clk 0:17:38]}  Rd7 {[%clk 0:21:35]} 26. Rbc1 {[%clk 0:17:38]}  Bh6+ {[%clk 0:21:34]} 27. f4 {[%clk 0:17:38]}  Re8 {[%clk 0:21:34]}
28. Kf3 {[%clk 0:17:38]}  Rd4 {[%clk 0:21:34]} 29. Rhe1 {[%clk 0:17:38]}  f5 {[%clk 0:21:34]} 30. Bb1 {[%clk 0:17:38]}  Rxf4+ {[%clk 0:21:34]}
31. Kg2 {[%clk 0:17:38]}  Rg8+ {[%clk 0:21:34]} 32. Kh1 {[%clk 0:17:38]}  Rfg4 {[%clk 0:21:34]} 33. Bxf5 {[%clk 0:17:38]}  Bxc1 {[%clk 0:21:34]}
34. Bxg4 {[%clk 0:17:38]}  Bxa3 {[%clk 0:21:34]} 35. Re4 {[%clk 0:17:38]}  Rg7 {[%clk 0:00:00]} 36. Rc4 {[%clk 0:17:38]}  b6 {[%clk 0:00:00]}
37. b5 {[%clk 0:17:38]}  Bc5 {[%clk 0:00:00]} 38. h3 {[%clk 0:17:38]}  Kc7 {[%clk 0:00:00]} 39. Ra4 {[%clk 0:17:38]}  Kd6 {[%clk 0:00:00]}
40. Re4 {[%clk 0:17:38]}  Rf7 {[%clk 0:00:00]} 41. Re1 {[%clk 0:17:38]}  Rg7 {[%clk 0:21:34]} 42. Re2 {[%clk 0:17:38]}  Kd5 {[%clk 0:21:34]}
43. Bf3+ {[%clk 0:17:38]}  Kc4 {[%clk 0:21:34]} 44. Bc6 {[%clk 0:17:38]}  Rc7 {[%clk 0:21:34]} 45. Be8 {[%clk 0:17:38]}  Kd3 {[%clk 0:21:34]}
46. Re1 {[%clk 0:17:38]}  Re7 {[%clk 0:21:34]} 47. Rxe7 {[%clk 0:17:38]}  Bxe7 {[%clk 0:21:34]} 48. Bd7 {[%clk 0:17:38]}  Kc4 {[%clk 0:21:34]}
49. Kg2 {[%clk 0:17:38]}  Kc5 {[%clk 0:21:34]} 50. Kf3 {[%clk 0:17:38]}  Kd6 {[%clk 0:21:34]} 51. Be8 {[%clk 0:17:38]} 1/2-1/2